fUST/lending_fUST_20260628
["ID","MTS","AMOUNT","RATE_DAILY","PERIOD"]
[426605303,1782659463000,-343.15,0.00030576,15]
[426605251,1782659463000,-1341.37,0.0003041,2]
[426605255,1782659463000,-842.56,0.0003041,2]
[426605259,1782659463000,-838.15,0.0003041,2]
[426605253,1782659463000,-1023.05,0.0003041,2]
[426605333,1782659463000,-914.96,0.00030684,2]
[426605234,1782659463000,-1141.63,0.0003041,2]
[426605249,1782659463000,-7700.18,0.0003041,2]
[426605261,1782659463000,-775.76,0.0003041,2]
[426605263,1782659463000,-500.0,0.0003041,2]
[426605270,1782659463000,-2866.46,0.0003041,2]
[426605267,1782659463000,-1136.34,0.0003041,2]
[426605280,1782659463000,-3000.24,0.0003041,2]
[426605269,1782659463000,-2112.17,0.0003041,2]
[426605245,1782659463000,-610.61,0.0003041,2]
[426605265,1782659463000,-1359.81,0.0003041,2]
[426605273,1782659463000,-1280.87,0.0003041,2]
[426605296,1782659463000,-200.0,0.00030432,2]
[426605294,1782659463000,-343.15,0.00030426,15]
[426605292,1782659463000,-1652.91,0.0003041,2]
[426605290,1782659463000,-500.0,0.0003041,2]
[426605307,1782659463000,-501.37,0.00030684,2]
[426605284,1782659463000,-785.87,0.0003041,2]
[426605278,1782659463000,-2566.12,0.0003041,2]
[426605286,1782659463000,-767.18,0.0003041,2]
[426605288,1782659463000,-1190.96,0.0003041,2]
[426605276,1782659463000,-1027.27,0.0003041,2]
[426605274,1782659463000,-622.09,0.0003041,2]
[426605282,1782659463000,-176.77698954,0.0003041,2]
[426605420,1782659464000,-4486.89653988,0.00030958,2]
[426605442,1782659464000,-4675.36534206,0.00030958,2]
[426605412,1782659464000,-561.92464683,0.00030958,2]
[426605416,1782659464000,-306.95798798,0.00030958,2]
[426605414,1782659464000,-693.37204823,0.00030958,2]
[426605422,1782659464000,-467.3,0.00030958,2]
[426605424,1782659464000,-1333.64743157,0.00030958,2]
[426605426,1782659464000,-672.36862653,0.00030958,2]
[426605437,1782659464000,-1611.69448896,0.00030958,2]
[426605440,1782659464000,-839.90857729,0.00030958,2]
[426605418,1782659464000,-960.6052164,0.00030958,2]
[426605435,1782659464000,-1230.17818791,0.00030958,2]
[426605445,1782659464000,-1324.10914033,0.00030958,2]
[426605428,1782659464000,-894.66116336,0.00030958,2]
[426605430,1782659464000,-604.81959861,0.00030958,2]
[426605447,1782659464000,-2263.62102482,0.00030958,2]
[426605408,1782659464000,-501.44264985,0.00030958,2]
[426605450,1782659464000,-2184.02110136,0.00030958,2]
[426605434,1782659464000,-802.0556104,0.00030958,2]
[426605431,1782659464000,-628.23294895,0.00030958,2]
[426605452,1782659464000,-1002.39,0.00030958,2]
[426605461,1782659464000,-1341.53296143,0.00030958,2]
[426605454,1782659464000,-1187.78889475,0.00030958,2]
[426605463,1782659464000,-1023.24017614,0.00030958,2]
[426605457,1782659464000,-2043.70117826,0.00030958,2]
[426605443,1782659464000,-915.06549299,0.00030958,2]
[426605410,1782659464000,-576.90956631,0.00030958,2]
[426605382,1782659464000,-785.87,0.00030684,2]
[426605404,1782659464000,-343.15,0.00030876,15]
[426605459,1782659464000,-7700.31495865,0.00030958,2]
[426605350,1782659464000,-7700.18,0.00030684,2]
[426605352,1782659464000,-1341.37,0.00030684,2]
[426605354,1782659464000,-1023.05,0.00030684,2]
[426605360,1782659464000,-838.15,0.00030684,2]
[426605362,1782659464000,-775.76,0.00030684,2]
[426605358,1782659464000,-931.9,0.00030684,2]
[426605356,1782659464000,-842.56,0.00030684,2]
[426605364,1782659464000,-500.0,0.00030684,2]
[426605375,1782659464000,-622.09,0.00030684,2]
[426605367,1782659464000,-1136.34,0.00030684,2]
[426605366,1782659464000,-1359.81,0.00030684,2]
[426605371,1782659464000,-2866.46,0.00030684,2]
[426605373,1782659464000,-1280.87,0.00030684,2]
[426605376,1782659464000,-1027.27,0.00030684,2]
[426605378,1782659464000,-2566.12,0.00030684,2]
[426605386,1782659464000,-1190.96,0.00030684,2]
[426605394,1782659464000,-343.15,0.00030726,15]
[426605380,1782659464000,-3000.24,0.00030684,2]
[426605390,1782659464000,-1652.91,0.00030684,2]
[426605392,1782659464000,-203.57441924,0.00030717,4]
[426605384,1782659464000,-767.18,0.00030684,2]
[426605388,1782659464000,-500.0,0.00030684,2]
[426605400,1782659464000,-343.15,0.00030776,15]
[426605402,1782659464000,-343.15,0.00030826,15]
[426605406,1782659464000,-343.15,0.00030926,15]
[426605369,1782659464000,-2112.17,0.00030684,2]
[426605468,1782659464000,-838.15603833,0.00030958,2]
[426605470,1782659464000,-775.85379574,0.00030958,2]
[426605529,1782659464000,-500.0,0.00025479,2]
[426605523,1782659464000,-351.86401041,0.0001495,2]
[426605527,1782659464000,-500.0,0.00025205,2]
[426605544,1782659464000,-568.28,0.00029863,2]
[426605542,1782659464000,-2687.32,0.00029863,2]
[426605551,1782659464000,-2687.38740694,0.00030958,2]
[426605545,1782659464000,-2687.32,0.00030136,2]
[426605547,1782659464000,-2687.32,0.0003041,2]
[426605563,1782659464000,-16711.33798255,0.00031,2]
[426605549,1782659464000,-2687.32,0.00030684,2]
[426605553,1782659464000,-205835.80098037,0.00031,2]
[426605557,1782659464000,-700.0,0.00031,2]
[426605561,1782659464000,-303.0,0.00031,2]
[426605560,1782659464000,-399.0,0.00031,2]
[426605566,1782659464000,-343.15,0.00031026,15]
[426605570,1782659464000,-343.15,0.00031076,15]
[426605568,1782659464000,-200.0,0.0003104,2]
[426605572,1782659464000,-343.15,0.00031126,15]
[426605578,1782659464000,-343.15,0.00031226,15]
[426605582,1782659464000,-160.0,0.00031238,3]
[426605574,1782659464000,-343.15,0.00031176,15]
[426605580,1782659464000,-200.0,0.00031229,19]
[426605565,1782659464000,-553.14684992,0.00031001,2]
[426605576,1782659464000,-181.81818182,0.00031191,8]
[426605467,1782659464000,-931.91408822,0.00030958,2]
[426605525,1782659464000,-543.76263401,0.00024657,2]
[426605540,1782659464000,-568.28,0.00029589,2]
[426605555,1782659464000,-209.0,0.00031,2]
[426605531,1782659464000,-500.0,0.00025753,2]
[426605456,1782659464000,-610.8390046,0.00030958,2]
[426605538,1782659464000,-568.28,0.00029315,2]
[426605465,1782659464000,-842.719107,0.00030958,2]
[426605474,1782659464000,-1359.96178666,0.00030958,2]
[426605472,1782659464000,-242.60586899,0.00030958,2]
[426605476,1782659464000,-1136.41308937,0.00030958,2]
[426605480,1782659464000,-2866.67355916,0.00030958,2]
[426605482,1782659464000,-1280.99460309,0.00030958,2]
[426605483,1782659464000,-622.29913842,0.00030958,2]
[426605485,1782659464000,-1027.36053482,0.00030958,2]
[426605495,1782659464000,-1191.12473634,0.00030958,2]
[426605497,1782659464000,-197.33439808,0.00030958,2]
[426605493,1782659464000,-767.40001593,0.00030958,2]
[426605478,1782659464000,-2112.21204031,0.00030958,2]
[426605511,1782659464000,-11969.18435869,0.00031,2]
[426605491,1782659464000,-785.95613624,0.00030958,2]
[426605489,1782659464000,-3000.45770412,0.00030958,2]
[426605499,1782659464000,-1653.01259882,0.00030958,2]
[426605503,1782659464000,-200.45,0.00031,2]
[426605501,1782659464000,-343.15,0.00030976,15]
[426605505,1782659464000,-378241.2100206,0.00031,2]
[426605509,1782659464000,-500.0,0.00024931,2]
[426605513,1782659464000,-3924.22889829,0.00031,2]
[426605536,1782659464000,-568.28,0.00029041,2]
[426605487,1782659464000,-2566.32684995,0.00030958,2]
[426605535,1782659464000,-500.0,0.00026301,2]
[426605533,1782659464000,-500.0,0.00026027,2]
[426605672,1782659465000,-343.15,0.00032676,15]
[426605675,1782659465000,-200.0,0.00032782,2]
[426605645,1782659465000,-343.15,0.00032226,15]
[426605671,1782659465000,-38650.32105135,0.0003266,2]
[426605663,1782659465000,-343.15,0.00032526,15]
[426605652,1782659465000,-343.15,0.00032276,15]
[426605640,1782659465000,-219.59659,0.00032138,14]
[426605654,1782659465000,-343.15,0.00032326,15]
[426605691,1782659465000,-212.07861104,0.00033,2]
[426605647,1782659465000,-181.81818182,0.00032275,13]
[426605670,1782659465000,-343.15,0.00032626,15]
[426605658,1782659465000,-343.15,0.00032426,15]
[426605666,1782659465000,-200.0,0.0003255,2]
[426605693,1782659465000,-414.38150507,0.00033,2]
[426605668,1782659465000,-343.15,0.00032576,15]
[426605664,1782659465000,-200.0,0.0003255,2]
[426605669,1782659465000,-193.0,0.0003259,2]
[426605673,1782659465000,-343.15,0.00032726,15]
[426605661,1782659465000,-343.15,0.00032476,15]
[426605687,1782659465000,-199.47,0.00032877,120]
[426605677,1782659465000,-343.15,0.00032826,15]
[426605689,1782659465000,-343.15,0.00032926,60]
[426605679,1782659465000,-300.0,0.0003286,26]
[426605676,1782659465000,-181.81818182,0.00032816,16]
[426605692,1782659465000,-712.77461634,0.00033,2]
[426605678,1782659465000,-295.3445467,0.0003286,2]
[426605643,1782659465000,-200.0,0.00032201,2]
[426605674,1782659465000,-343.15,0.00032776,15]
[426605641,1782659465000,-343.15,0.00032176,15]
[426605587,1782659465000,-343.15,0.00031326,15]
[426605626,1782659465000,-700.0,0.00032,2]
[426605585,1782659465000,-1323.6424269,0.00031294,2]
[426605583,1782659465000,-343.15,0.00031276,15]
[426605589,1782659465000,-280.814775,0.00031345,2]
[426605592,1782659465000,-343.15,0.00031426,15]
[426605594,1782659465000,-343.15,0.00031476,15]
[426605590,1782659465000,-343.15,0.00031376,15]
[426605598,1782659465000,-343.15,0.00031576,15]
[426605596,1782659465000,-343.15,0.00031526,15]
[426605600,1782659465000,-186.0,0.00031613,2]
[426605603,1782659465000,-200.0,0.00031621,2]
[426605605,1782659465000,-343.15,0.00031626,15]
[426605609,1782659465000,-343.15,0.00031726,15]
[426605607,1782659465000,-343.15,0.00031676,15]
[426605602,1782659465000,-446.0,0.00031613,2]
[426605613,1782659465000,-343.15,0.00031776,15]
[426605611,1782659465000,-181.81818182,0.00031733,10]
[426605615,1782659465000,-343.15,0.00031826,15]
[426605617,1782659465000,-343.15,0.00031876,15]
[426605628,1782659465000,-399.0,0.00032,2]
[426605630,1782659465000,-303.0,0.00032,2]
[426605632,1782659465000,-343.15,0.00032026,15]
[426605622,1782659465000,-343.15,0.00031976,15]
[426605634,1782659465000,-343.15,0.00032076,15]
[426605637,1782659465000,-343.15,0.00032126,15]
[426605636,1782659465000,-200.0,0.00032116,22]
[426605624,1782659465000,-209.0,0.00032,2]
[426605619,1782659465000,-343.15,0.00031926,15]
[426605621,1782659465000,-170.0,0.00031969,14]
[426605690,1782659465000,-343.15,0.00032976,60]
[426605656,1782659465000,-343.15,0.00032376,15]
[426605683,1782659465000,-628.73189219,0.00032876,2]
[426605737,1782659465000,-219.61256553,0.00033919,2]
[426605728,1782659465000,-200.0,0.0003389,32]
[426605736,1782659465000,-153.86841124,0.00033919,2]
[426605731,1782659465000,-164.09448432,0.00033916,2]
[426605733,1782659465000,-199.78236631,0.00033919,2]
[426605732,1782659465000,-222.21852346,0.00033919,2]
[426605726,1782659465000,-328.0,0.0003367,2]
[426605735,1782659465000,-178.4004419,0.00033919,2]
[426605734,1782659465000,-483.57732961,0.00033919,2]
[426605739,1782659465000,-182.63412235,0.00033935,2]
[426605750,1782659465000,-800.0,0.00034004,2]
[426605749,1782659465000,-169.47269398,0.00034003,2]
[426605738,1782659465000,-151.48638533,0.00033919,2]
[426605729,1782659465000,-181.81818182,0.000339,22]
[426605740,1782659465000,-200.0,0.00033943,2]
[426605743,1782659465000,-621.29799704,0.00033949,2]
[426605742,1782659465000,-161.34565369,0.00033948,2]
[426605746,1782659465000,-156.88068814,0.00033998,2]
[426605748,1782659465000,-300.0,0.00034,120]
[426605747,1782659465000,-173.51266891,0.00033998,2]
[426605745,1782659465000,-182.9894334,0.00033998,2]
[426605744,1782659465000,-170.0,0.00033967,30]
[426605754,1782659465000,-170.0,0.00034252,30]
[426605751,1782659465000,-170.36429871,0.00034005,2]
[426605752,1782659465000,-168.03083468,0.00034008,2]
[426605756,1782659465000,-160.0,0.0003451,4]
[426605755,1782659465000,-181.81818182,0.00034442,24]
[426605680,1782659465000,-1000.0,0.00032876,2]
[426605741,1782659465000,-967.97708369,0.00033948,2]
[426605730,1782659465000,-658.4759269,0.00033916,2]
[426605753,1782659465000,-355.0,0.00034246,2]
[426605727,1782659465000,-3675.80521969,0.00033848,2]
[426605725,1782659465000,-200.0,0.0003367,2]
[426605681,1782659465000,-1000.0,0.00032876,2]
[426605696,1782659465000,-343.15,0.00033026,60]
[426605694,1782659465000,-310.56115347,0.00033,2]
[426605697,1782659465000,-343.15,0.00033076,60]
[426605698,1782659465000,-343.15,0.00033126,60]
[426605702,1782659465000,-343.15,0.00033226,60]
[426605706,1782659465000,-343.15,0.00033326,60]
[426605704,1782659465000,-343.15,0.00033276,60]
[426605699,1782659465000,-343.15,0.00033176,60]
[426605695,1782659465000,-200.0,0.00033003,27]
[426605708,1782659465000,-826161.05162942,0.00033333,2]
[426605700,1782659465000,-291.0483808,0.000332,117]
[426605711,1782659465000,-181.81818182,0.00033358,19]
[426605685,1782659465000,-343.15,0.00032876,15]
[426605713,1782659465000,-343.15,0.00033376,60]
[426605710,1782659465000,-293272.30578314,0.00033333,2]
[426605719,1782659465000,-200.0,0.0003367,2]
[426605722,1782659465000,-200.0,0.0003367,2]
[426605720,1782659465000,-200.0,0.0003367,2]
[426605715,1782659465000,-343.15,0.00033476,60]
[426605712,1782659465000,-200.0,0.00033363,2]
[426605718,1782659465000,-176.0,0.00033644,62]
[426605717,1782659465000,-300.0,0.00033596,30]
[426605721,1782659465000,-200.0,0.0003367,2]
[426605716,1782659465000,-343.61,0.00033526,60]
[426605724,1782659465000,-200.0,0.0003367,2]
[426605723,1782659465000,-200.0,0.0003367,2]
[426605714,1782659465000,-343.15,0.00033426,60]
[426605793,1782659466000,-553.2763536,0.00035,120]
[426605799,1782659466000,-220.72105649,0.00035145,2]
[426605798,1782659466000,-200.0,0.00035105,2]
[426605797,1782659466000,-355.0,0.00035068,5]
[426605795,1782659466000,-526.23096608,0.00035008,120]
[426605787,1782659466000,-340.72859742,0.00034992,2]
[426605794,1782659466000,-3999.999999,0.00035,30]
[426605792,1782659466000,-246.55,0.00035,60]
[426605791,1782659466000,-246.55,0.00035,60]
[426605790,1782659466000,-232.258703,0.00035,30]
[426605785,1782659466000,-338.94538796,0.0003499,2]
[426605796,1782659466000,-298.92537116,0.0003506,30]
[426605802,1782659466000,-157.69622124,0.00035448,14]
[426605801,1782659466000,-659.85827266,0.00035399,120]
[426605800,1782659466000,-355.0,0.00035342,6]
[426605806,1782659466000,-492.28345297,0.00035556,2]
[426605803,1782659466000,-181.81818182,0.00035526,30]
[426605805,1782659466000,-1975.42778069,0.00035556,2]
[426605807,1782659466000,-271.27771118,0.00035556,2]
[426605808,1782659466000,-279.6789748,0.00035556,2]
[426605809,1782659466000,-221.81797013,0.00035558,2]
[426605817,1782659466000,-666.65557039,0.00035558,2]
[426605816,1782659466000,-163.85228872,0.00035558,2]
[426605819,1782659466000,-376.4216942,0.00035558,2]
[426605818,1782659466000,-195.97199453,0.00035558,2]
[426605784,1782659466000,-347.02533781,0.00034985,2]
[426605820,1782659466000,-213.94994312,0.00035558,2]
[426605804,1782659466000,-2063.24798775,0.00035531,3]
[426605789,1782659466000,-10865.40600302,0.00035,2]
[426605765,1782659466000,-328.18896865,0.000349,2]
[426605788,1782659466000,-336.06166936,0.00034995,2]
[426605821,1782659466000,-161.72761567,0.00035558,2]
[426605761,1782659466000,-446.0,0.00034613,2]
[426605757,1782659466000,-163.24955622,0.0003451,5]
[426605758,1782659466000,-355.0,0.0003452,3]
[426605759,1782659466000,-200.0,0.00034524,2]
[426605760,1782659466000,-186.0,0.00034613,2]
[426605762,1782659466000,-200.0,0.00034777,37]
[426605764,1782659466000,-1316.95185379,0.000349,2]
[426605775,1782659466000,-439.22513105,0.00034903,2]
[426605774,1782659466000,-307.73682247,0.00034903,2]
[426605776,1782659466000,-302.97277065,0.00034903,2]
[426605763,1782659466000,-355.0,0.00034794,4]
[426605767,1782659466000,-231.85797327,0.00034903,2]
[426605770,1782659466000,-399.56473263,0.00034903,2]
[426605769,1782659466000,-564.6325413,0.00034903,2]
[426605766,1782659466000,-234.20436929,0.00034903,2]
[426605768,1782659466000,-444.43704693,0.00034903,2]
[426605773,1782659466000,-195.6962974,0.00034903,2]
[426605771,1782659466000,-967.15465922,0.00034903,2]
[426605772,1782659466000,-356.80088381,0.00034903,2]
[426605777,1782659466000,-365.2682447,0.00034919,2]
[426605780,1782659466000,-322.69130738,0.00034933,2]
[426605783,1782659466000,-313.76137627,0.00034985,2]
[426605779,1782659466000,-806.64756974,0.00034933,2]
[426605778,1782659466000,-153.29365654,0.00034932,2]
[426605782,1782659466000,-365.97886679,0.00034985,2]
[426605781,1782659466000,-181.81818182,0.00034984,27]
[426605786,1782659466000,-600.0,0.0003499,2]
[426605810,1782659466000,-225.63006882,0.00035558,2]
[426605814,1782659466000,-244.55113119,0.00035558,2]
[426605812,1782659466000,-158.2810651,0.00035558,2]
[426605858,1782659466000,-520.53800672,0.00035643,2]
[426605860,1782659466000,-172.59574354,0.00035648,2]
[426605853,1782659466000,-157.81305068,0.00035601,2]
[426605849,1782659466000,-163.23560832,0.00035601,2]
[426605859,1782659466000,-508.41808194,0.00035648,2]
[426605852,1782659466000,-181.31623788,0.00035601,2]
[426605857,1782659466000,-470.64206441,0.00035643,2]
[426605855,1782659466000,-241.14543542,0.00035616,2]
[426605854,1782659466000,-355.0,0.00035616,7]
[426605856,1782659466000,-548.96830019,0.00035643,2]
[426605863,1782659466000,-199.81401286,0.00035648,2]
[426605861,1782659466000,-176.24150655,0.00035648,2]
[426605875,1782659466000,-200.0,0.00035685,2]
[426605876,1782659466000,-659.85827266,0.00035817,120]
[426605874,1782659466000,-200.0,0.00035664,38]
[426605877,1782659466000,-659.85827266,0.00035825,120]
[426605872,1782659466000,-511.09289612,0.0003565,2]
[426605873,1782659466000,-504.09250403,0.00035653,2]
[426605865,1782659466000,-203.91222503,0.00035648,2]
[426605870,1782659466000,-264.93314394,0.00035648,2]
[426605866,1782659466000,-199.06157125,0.00035648,2]
[426605868,1782659466000,-187.82406203,0.00035648,2]
[426605878,1782659466000,-366.05587355,0.0003589,8]
[426605815,1782659466000,-463.71594655,0.00035558,2]
[426605881,1782659466000,-2633.90370759,0.00035993,2]
[426605879,1782659466000,-1267.02073899,0.0003589,3]
[426605882,1782659466000,-656.3779373,0.00035993,2]
[426605851,1782659466000,-158.98069694,0.00035601,2]
[426605850,1782659466000,-165.86219634,0.00035601,2]
[426605880,1782659466000,-170.0,0.00035965,30]
[426605843,1782659466000,-182.81806943,0.00035601,2]
[426605848,1782659466000,-158.89319306,0.00035601,2]
[426605813,1782659466000,-468.40873858,0.00035558,2]
[426605822,1782659466000,-599.34709894,0.00035558,2]
[426605823,1782659466000,-1450.73198883,0.00035558,2]
[426605824,1782659466000,-220.70213949,0.00035558,2]
[426605825,1782659466000,-535.20132571,0.00035558,2]
[426605831,1782659466000,-454.45915598,0.00035558,2]
[426605827,1782659466000,-244.1188917,0.00035558,2]
[426605826,1782659466000,-466.95367314,0.00035558,2]
[426605829,1782659466000,-461.60523371,0.00035558,2]
[426605830,1782659466000,-658.83769658,0.00035558,2]
[426605828,1782659466000,-391.39259479,0.00035558,2]
[426605832,1782659466000,-369.15414225,0.00035562,7]
[426605811,1782659466000,-187.69198578,0.00035558,2]
[426605834,1782659466000,-306.58731308,0.00035589,2]
[426605833,1782659466000,-547.90236704,0.00035575,2]
[426605845,1782659466000,-271.06764345,0.00035601,2]
[426605840,1782659466000,-310.64899852,0.00035591,2]
[426605842,1782659466000,-200.30233953,0.00035601,2]
[426605841,1782659466000,-186.16846631,0.00035596,2]
[426605837,1782659466000,-484.03696106,0.00035589,2]
[426605844,1782659466000,-191.80294083,0.00035601,2]
[426605839,1782659466000,-182.60839422,0.0003559,2]
[426605835,1782659466000,-190.15712939,0.00035589,2]
[426605846,1782659466000,-160.28616868,0.00035601,2]
[426605836,1782659466000,-645.31805579,0.00035589,2]
[426605847,1782659466000,-187.11190564,0.00035601,2]
[426605838,1782659466000,-465.77187328,0.0003559,2]
[426605913,1782659467000,-327.70457745,0.00035996,2]
[426605914,1782659467000,-161.99905032,0.00035996,2]
[426605918,1782659467000,-391.94398906,0.00035996,2]
[426605920,1782659467000,-189.89672938,0.00035996,2]
[426605925,1782659467000,-411.74028312,0.00035996,2]
[426605915,1782659467000,-309.0057492,0.00035996,2]
[426605926,1782659467000,-162.4440186,0.00035996,2]
[426605922,1782659467000,-311.7456528,0.00035996,2]
[426605917,1782659467000,-400.83711874,0.00035996,2]
[426605908,1782659467000,-161.51891757,0.00035996,2]
[426605938,1782659467000,-713.60176762,0.00035996,2]
[426605923,1782659467000,-427.89988624,0.00035996,2]
[426605919,1782659467000,-375.60479829,0.00035996,2]
[426605921,1782659467000,-166.84106711,0.00035996,2]
[426605928,1782659467000,-214.72386192,0.00035996,2]
[426605939,1782659467000,-559.3579496,0.00035996,2]
[426605931,1782659467000,-323.45523133,0.00035996,2]
[426605927,1782659467000,-365.77714762,0.00035996,2]
[426605930,1782659467000,-352.37319945,0.00035996,2]
[426605929,1782659467000,-222.05247613,0.00035996,2]
[426605937,1782659467000,-441.40427897,0.00035996,2]
[426605933,1782659467000,-302.31209685,0.00035996,2]
[426605909,1782659467000,-355.54075107,0.00035996,2]
[426605916,1782659467000,-888.87409386,0.00035996,2]
[426605907,1782659467000,-189.74031225,0.00035996,2]
[426605896,1782659467000,-236.73353691,0.00035996,2]
[426605906,1782659467000,-325.07788097,0.00035996,2]
[426605936,1782659467000,-1934.30931844,0.00035996,2]
[426605886,1782659467000,-451.26013765,0.00035996,2]
[426605883,1782659467000,-542.55542236,0.00035993,2]
[426605885,1782659467000,-322.2892492,0.00035996,2]
[426605884,1782659467000,-443.63594027,0.00035995,2]
[426605887,1782659467000,-323.35363499,0.00035996,2]
[426605890,1782659467000,-375.38397157,0.00035996,2]
[426605888,1782659467000,-166.56880551,0.00035996,2]
[426605889,1782659467000,-401.62132566,0.00035996,2]
[426605891,1782659467000,-316.5621302,0.00035996,2]
[426605893,1782659467000,-335.92262425,0.00035996,2]
[426605904,1782659467000,-489.10226239,0.00035996,2]
[426605903,1782659467000,-392.3983891,0.00035996,2]
[426605892,1782659467000,-340.44523555,0.00035996,2]
[426605894,1782659467000,-306.92555028,0.00035996,2]
[426605895,1782659467000,-247.89626208,0.00035996,2]
[426605902,1782659467000,-449.8642745,0.00035996,2]
[426605901,1782659467000,-259.2578662,0.00035996,2]
[426605897,1782659467000,-159.02400938,0.00035996,2]
[426605898,1782659467000,-356.75584073,0.00035996,2]
[426605899,1782659467000,-702.61310788,0.00035996,2]
[426605900,1782659467000,-273.90733826,0.00035996,2]
[426605905,1782659467000,-341.04202542,0.00035996,2]
[426605910,1782659467000,-387.97638092,0.00035996,2]
[426605912,1782659467000,-382.77770421,0.00035996,2]
[426605911,1782659467000,-695.57391982,0.00035996,2]
[426605935,1782659467000,-799.12946526,0.00035996,2]
[426605924,1782659467000,-313.4549548,0.00035996,2]
[426605934,1782659467000,-549.47132373,0.00035996,2]
[426605970,1782659467000,-313.92496842,0.00036039,2]
[426605981,1782659467000,-362.63247575,0.00036039,2]
[426605980,1782659467000,-170.6912141,0.00036039,2]
[426605976,1782659467000,-317.78638611,0.00036039,2]
[426605977,1782659467000,-309.68248575,0.00036039,2]
[426605972,1782659467000,-374.22381129,0.00036039,2]
[426605979,1782659467000,-331.72439267,0.00036039,2]
[426605978,1782659467000,-326.47121665,0.00036039,2]
[426605974,1782659467000,-163.26411698,0.00036039,2]
[426605967,1782659467000,-542.13528689,0.00036039,2]
[426605983,1782659467000,-162.73607764,0.00036039,2]
[426605982,1782659467000,-315.62610136,0.00036039,2]
[426605984,1782659467000,-318.47832436,0.00036039,2]
[426605987,1782659467000,-731.95773358,0.00036081,2]
[426605990,1782659467000,-627.52275255,0.00036081,2]
[426605992,1782659467000,-677.89077592,0.00036087,2]
[426605991,1782659467000,-694.05067563,0.00036081,2]
[426605993,1782659467000,-414.61691617,0.00036087,2]
[426605994,1782659467000,-345.19148707,0.00036087,2]
[426605995,1782659467000,-352.4830131,0.00036087,2]
[426605998,1782659467000,-338.77139953,0.00036087,2]
[426605996,1782659467000,-399.62802573,0.00036087,2]
[426606000,1782659467000,-407.82445005,0.00036087,2]
[426605999,1782659467000,-354.28442662,0.00036087,2]
[426605932,1782659467000,-424.41683832,0.00035996,2]
[426605969,1782659467000,-160.62446177,0.00036039,2]
[426605968,1782659467000,-320.57233737,0.00036039,2]
[426605997,1782659467000,-206.30885118,0.00036087,2]
[426605959,1782659467000,-372.33693261,0.00036033,2]
[426605940,1782659467000,-311.30244876,0.00035996,2]
[426605966,1782659467000,-383.60588166,0.00036039,2]
[426605945,1782659467000,-605.9455413,0.00035996,2]
[426605944,1782659467000,-878.45026211,0.00035996,2]
[426605942,1782659467000,-587.08889219,0.00035996,2]
[426605946,1782659467000,-409.93415252,0.00036017,2]
[426605947,1782659467000,-198.47713142,0.00036026,2]
[426605948,1782659467000,-483.98854184,0.00036027,2]
[426605952,1782659467000,-169.82621183,0.00036027,2]
[426605941,1782659467000,-488.23778341,0.00035996,2]
[426605951,1782659467000,-459.88096963,0.00036027,2]
[426605949,1782659467000,-645.38261475,0.00036027,2]
[426605943,1782659467000,-615.47364494,0.00035996,2]
[426605965,1782659467000,-162.71027829,0.00036039,2]
[426605950,1782659467000,-183.98281796,0.00036027,2]
[426605958,1782659467000,-155.32449926,0.00036028,2]
[426605955,1782659467000,-365.21678843,0.00036027,2]
[426605960,1782659467000,-163.38528833,0.00036034,2]
[426605961,1782659467000,-191.68342095,0.00036034,2]
[426605963,1782659467000,-400.60467906,0.00036039,2]
[426605956,1782659467000,-192.38845048,0.00036027,2]
[426605953,1782659467000,-380.31425879,0.00036027,2]
[426605964,1782659467000,-365.63613887,0.00036039,2]
[426605954,1782659467000,-194.70241772,0.00036027,2]
[426605962,1782659467000,-183.83678196,0.00036034,2]
[426605957,1782659467000,-177.70693873,0.00036027,2]
[426606028,1782659468000,-784.40344068,0.0003652,2]
[426606038,1782659468000,-1070.40265143,0.00037089,2]